{"text_format":"2","workbook":"xlsx","n_sheets":1,"sheets":["Könyvtári szám alapján rendezve"],"not_rendered":{"charts":0,"images":0,"macros":0,"external_links":1,"defined_names":0,"comments":0,"pivot_tables":0},"unopened":[],"bounds":{"document_bytes":16777216,"sheet_cells":100000,"run_cost":"one","rows_first":2000,"rows_last":500,"rows_between":2000,"halvings":0,"cell_chars":16384,"cell_head_chars":4096},"cells_cut":0,"cells_raw":0,"read":"whole","date_system":"1900"}

{"sheet":"Könyvtári szám alapján rendezve","index":0,"n_rows":212,"n_cols":10,"rows_kept":212,"cut":false,"hidden":false,"merged":[]}
["Könyvtári szám","Szerző","Cím","Év","Típus","Tagozat","Témavezető","Konzulens1","Konzulens2","Sorszám"]
["M2011/001","Lázár Zsófia","Kecskemét településmarketingje lakossági és gazdasági szempontok alapján",2011,"Diplomamunka","Geográfus MSc","Dr.Bajmócy Péter",null,null,1]
["M2011/002","Pocsaji Edit","Békéscsaba népessége és arculata",2011,"Diplomamunka","Geográfus MSc","Dr.Becsei József",null,null,2]
["M2011/003","Szabó Zsolt","Magyarország megyei jogú városainak népességszám változása 1949 és 2010 között",2011,"Diplomamunka","Geográfus MSc","Dr. Bajmócy Péter",null,null,3]
["M2011/004","Bernáth Henritta","Német tengeri kikötővárosok társadalmi változásai",2011,"Diplomamunka","Geográfus MSc","Dr. Bajmócy Péter",null,null,4]
["M2011/005","Trombitás Tímea","Ada község gazdaság- és társadalomföldrajzi elemzése a szociálgeográfiai alapfunkciók vizsgálatával",2011,"Diplomamunka","Geográfus MSc","Dr. Bajmócy Péter",null,null,5]
["M2011/006","László Bálint","Szerbia regionalizációs nehézségei és az első kistérségi társulás úttörő szerepe",2011,"Diplomamunka","Geográfus MSc",null,null,null,6]
["M2011/007","Jurkovics Milán","Az M43-as autópálya hatásai Szeged tranzitforgalmára",2011,"Diplomamunka","Geográfus MSc","Dr. Bajmócy Péter",null,null,7]
["M2011/008","Fási Péter","A geotermikus energia-hasznosítás és az energiatakarosság helyzete Szentesen",2011,"Diplomamunka","Geográfus MSc","Dr. Kovács Zoltán",null,null,8]
["M2011/009","Hadnagy Erika Noémi","Párizs elérhetőségének vizsgálata légiközlekedési adatok felhasználásval",2011,"Diplomamunka","Geográfus MSc","Dr. Bajmócy Péter",null,null,9]
["M2011/010","Juhász Péter József","Mezőtúr és Szervas városok versenyképességének összehasonlító vizsgálata",2011,"Diplomamunka","Geográfus MSc","Dr. Kovács Zoltán",null,null,10]
["M2011/011","Lados Gábor","A józsefvárosi Corvin-Szigony negyed megújulási folyamata és társadalmi hatásai ",2011,"Diplomamunka","Geográfus MSc","Dr. Kovács Zoltán",null,null,11]
["M2011/012","Nagy Emese","Békéscsaba és Gyula város versenyképességének és sikerességének összehasonlító vizsgálata",2011,"Diplomamunka","Geográfus MSc","Dr. Kovács Zoltán",null,null,12]
["M2011/013","Nagy Gyula","A budapesti agglomeráció közösségi közlekedésének elvi és gyakorlati kérdései",2011,"Diplomamunka","Geográfus MSc","Dr. Bajmócy Péter",null,null,13]
["M2011/014","Varga Csaba","A vidékfejlesztés turisztikai tényezőinek sajátosságai a Kalocsai Kistérségben",2011,"Diplomamunka","Geográfus MSc","Dr. Csatári Bálint",null,null,14]
["M2011/015","Udvari Péter Lajos","Az életkörülmények és a boldogság kapcsolatának társadalomföldrajzi vizsgálata, Kecskemét példáján",2011,"Diplomamunka","Geográfus MSc","Dr. Csatári Bálint",null,null,15]
["M2011/016","Vincze Éva","A Dél-Alföldi Régió életminőségének vizsgálata",2011,"Diplomamunka","Geográfus MSc","Dr. Boros Lajos",null,null,16]
["M2011/017","Vincze Janka","Szociálgeográfiai vizsgálatok Csikérián",2011,"Diplomamunka","Geográfus MSc","Dr. Bajmócy Péter",null,null,17]
["M2011/018","Vedrédi Katalin","Szegedi közösségi terek fejlesztésének vizsgálata",2011,"Diplomamunka","Geográfus MSc","Dr. Boros Lajos",null,null,18]
["M2011/019","Vékony Ágnes","Szerbia városi központjai és vonzáskörzetei az elmélet és a gyakorlat tükrében",2011,"Diplomamunka","Geográfus MSc","Dr. Bajmócy Péter",null,null,19]
["M2011/020","Virág Attila","A salgótarjáni barnaövezet ingatlan alapú értékelése és reknstrukciós lehetősége",2011,"Diplomamunka","Geográfus MSc","Dr. Kovács Zoltán",null,null,20]
["M2011/021","Vargovics Róbert","Egyetemi hallgatók mentális képe és térpályái Szegeden",2011,"Diplomamunka","Geográfus MSc","Dr. Bajmócy Péter",null,null,21]
["M2011/022","Borók Bertalan","A falusi turizmus helyzete és fejlődési esélyei Jász-Nagykun- Szolnok megyében",2011,"Diplomamunka","Geográfus MSc","Dr. Csordás László",null,null,22]
["M2011/023","Szlovák Gábor","Az első Széchenyi Terv egészségturisztikai beruházásai a Dél-alföldi Régióban",2011,"Diplomamunka","Geográfus MSc","Dr. Juray Tünde",null,null,23]
["M2011/024","Török Melinda","Jász-Nagykun-Szolnok megye turisztikai ismertsége a fiatalok körében - vélemények és mentális térképek tükrében -",2011,"Diplomamunka","Geográfus MSc","Dr.Boros Lajos",null,null,24]
["M2011/025","Petrás Ádám","Izmir turizmusának terület- és településfejlesztő hatásai",2011,"Diplomamunka","Geográfus MSc","Dr. Juray Tünde",null,null,25]
["M2011/026","Novák Alíz","A fesztivállátogatási szokások a hallgatók véleménye alapján",2011,"Diplomamunka","Geográfus MSc","Pap Ági",null,null,26]
["M2011/027","Hollósi Judit","A tanösvények jelentősége a Szilvásváradi Szalajka- völgyi és a Nyíregyházi Erdész szemmel tanösvényről készített esttanulmány alapján",2011,"Diplomamunka","Geográfus MSc","Dr. Pál Viktor",null,null,27]
["M2011/028","Miskolczi Zsófia","A Dél-alföldi régió gasztronómiai hungarikumai és az ezekhez kapcsolódó rendezvények",2011,"Diplomamunka","Geográfus MSc","Dr. Csordás László",null,null,28]
["M2011/029","Tóth Frida","A vallási turizmus múltja és jelene, reneszánszának okai európai példákon keresztül",2011,"Diplomamunka","Geográfus MSc","Dr. Pál Viktor",null,null,29]
["M2011/030","Tóth Gábor Tamás","Magyarországi gyalogos turizmus kialakulása és heylzete napjainkban",2011,"Diplomamunka","Geográfus MSc","Dr. Csordás László"]
["M2011/031","Frank Ádám","Nemzeti fejlesztési tervek és operatív programok Magyarországon",2011,"Diplomamunka","Geográfus MSc","Dr. Juray Tünde"]
["M2011/032","Tar Tamás","A vízparti városrevitalizáció kérdésköre és megvalósíthatósága Gdansk városában",2011,"Diplomamunka","Geográfus MSc","Dr. Kovács Zoltán"]
["M2011/033","Bognár Viktor","A nyelv szerepe az identitás kialakulásában Jugoszlávia példáján",2011,"Diplomamunka","Geográfus MSc","Dr. Bajmócy Péter"]
["M2011/034","Gangl Éva","Egy táj, két ország, egy megnyíló határ - Vonzáskörzet-vizsgálatok Győr térségében",2011,"Diplomamunka","Geográfus MSc","Dr. Bajmócy Péter"]
["M2012/001","Turi László","Az idegenforgalmi barlangok fogadóépületének helyzete napjainkban",2012,"Diplomamunka","Geográfus MSc","Dr.Kovács Csaba",null,null,30]
["M2012/002","Somogyi Csaba","Határon átnyúló együttműködések, a Bihar-Bihor Eurorégió szerepe a térség fejlesztésében",2012,"Diplomamunka","Geográfus MSc","Dr. Pál Viktor",null,null,31]
["M2012/003","Vikor Zoltán Ágoston","Szociálgeográfiai vizsgálatok Deszken",2012,"Diplomamunka","Geográfus MSc","Dr. Bajmócy Péter",null,null,32]
["M2012/004","Veszelka Krisztina","A vidékkép és a turizmus összefüggései Homokháti kistérségben",2012,"Diplomamunka","Geográfus MSc","Dr. Csatári Bálint",null,null,33]
["M2012/005","Varga Szandra Éva","A ceglédi fürdőturizmus alakulása a rendszerváltozástól napjainkig",2012,"Diplomamunka","Geográfus MSc","Dr. Csordás László",null,null,34]
["M2012/006","Tóth Nóra","Elnéptelenedő és kihalt zselici aprófalvak társadalomföldrajzi problémái és kitörési lehetőségei",2012,"Diplomamunka","Geográfus MSc","Dr. Bajmócy Péter",null,null,35]
["M2012/007","Tóth Adrienn Ilona","A nemzetközi migráció települési hatásainak vizsgálata Battonya és Dombegyház példáján",2012,"Diplomamunka","Geográfus MSc","Dr. Hegedűs Gábor",null,null,36]
["M2012/008","Lennert József","A dél-alföldi települések tipizálása faktor- és klaszeranalízis használatával",2012,"Diplomamunka","Geográfus MSc","Dr. Csatári Bálint",null,null,37]
["M2012/009","Molnár Orsolya","Jász-Nagykun-Szolnok megye turizmusának általános jellemzése",2012,"Diplomamunka","Geográfus MSc","Dr. Juray Tünde",null,null,38]
["M2012/010","Pintér Zsolt József","Egy alföldi város településmorfológiája, Jászberény példáján",2012,"Diplomamunka","Geográfus MSc","Dr. Becsei József",null,null,39]
["M2012/011","Raffai István","A studentifikáció hatásai Szeged és Portsmouth egyetemi városok példáján",2012,"Diplomamunka","Geográfus MSc","Dr. Juray Tünde",null,null,40]
["M2012/012","Sinkó Evelin Ninetta","Szeged belső lakónegyedeinek társadalomföldrajzi differenciálódása",2012,"Diplomamunka","Geográfus MSc","Dr. Kovács Zoltán",null,null,41]
["M2012/013","Szaba Dalma","Szeged kulturális turizmusának helyzete és fejlesztési lehetőségei",2012,"Diplomamunka","Geográfus MSc","Dr. Csordás László",null,null,42]
["M2012/014","Szemenyei János","Gyálarét szociálgeográfija",2012,"Diplomamunka","Geográfus MSc","Dr. Bajmócy Péter",null,null,43]
["M2012/015","Bán Attila","Az öregedés és idősgondozás egészségföldrajzi vizsgálata Kecskemét példáján",2012,"Diplomamunka","Geográfus MSc","Dr. Pál Viktor",null,null,44]
["M2012/016","Bozsó Nóra","Az árvizek hatása a népesség migrációjára Északkelet-Magyarországon",2012,"Diplomamunka","Geográfus MSc","Dr. Bajmócy Péter",null,null,45]
["M2012/017","Budai Levente","Jászberény térkapcsolatainak vizsgálata",2012,"Diplomamunka","Geográfus MSc","Dr. Csatári Bálint",null,null,46]
["M2012/018","Cserna Dóra","Kecskemét kulturális turizmusa",2012,"Diplomamunka","Geográfus MSc","Dr. Csordás László",null,null,47]
["M2012/019","Fogas Imre","Határ menti gyógy- és termálturizmus Gyula és Mórahalom példáján",2012,"Diplomamunka","Geográfus MSc","Pap Ági",null,null,48]
["M2012/020","Paulovits Balázs","A kerékpáros turizmus fejlesztési lehetőségei a Salgótarjáni kistérség példáján keresztül",2012,"Diplomamunka","Geográfus MSc","Dr. Pál Viktor",null,null,49]
["M2012/021","Szaniszló Gábor","Aranyosapáti faluföldrajza",2012,"Diplomamunka","Geográfus MSc","Dr. Csatári Bálint",null,null,50]
["M2012/022","Fekete György","Az aprófalvas térségek területfejlesztési lehetőségei a Sásdi kistérség példáján keresztül",2012,"Diplomamunka","Geográfus MSc","Dr.Bajmócy Péter",null,null,51]
["M2012/023","Gosztonyi Nóra Beatrix","A multifunkcionális területek fejlesztési nehézségei a Budai Várnegyed példáján",2012,"Diplomamunka","Geográfus MSc","Dr. Boros Lajos",null,null,52]
["M2012/024","Hajdu Tímea","A kreatív- és kulturális gazdaság és a társadalmilag fenntartható városrehabilitácó",2012,"Diplomamunka","Geográfus MSc","Dr. Boros Lajos",null,null,53]
["M2012/025","Horváth Enikő","A Godisa-Komló vasútvonal menti települések szociál-közlekedésföldrajza és térkapcsolatai a vonal bezárásának és újranyitásának tükrében",2012,"Diplomamunka","Geográfus MSc","Dr. Bajmócy Péter",null,null,54]
["M2012/026","Herpai Tamás","A szegedi lakótelepek átalakulása a panelprogram nyomán",2012,"Diplomamunka","Geográfus MSc","Dr. Kovács Zoltán",null,null,55]
["M2012/027","Janoschek Arnold","Sopron turisztikai imázsa a magyar lakosság körében",2012,"Diplomamunka","Geográfus MSc","Dr. Juray Tünde",null,null,56]
["M2012/028","Kovács Ildikó","A DKMT Eurorégió tematikus útjainak idegenforgalmi szerepe",2012,"Diplomamunka","Geográfus MSc","Pap Ági",null,null,57]
["M2012/029","Karpjuk György","Baja város sikeressége a lakosság szemszögéből",2012,"Diplomamunka","Geográfus MSc","Dr. Boros Lajos",null,null,58]
["M2012/030","Kegler Gábor","A vidékiség földrajzi jellemzői a Kalocsai kistérségebn",2012,"Diplomamunka","Geográfus MSc","Dr. Csatári Bálint",null,null,59]
["M2012/031","Horváth Szilvia","A Szegedi kistérség turizmusának általános bemutatása, különös tekintettel a szálláshelyek vendégforgalmának alakulására",2012,"Diplomamunka","Geográfus MSc","Dr. Csordás László",null,null,60]
["M2012/032","Gyöngyi András","Lengyelország regionális politikája",2012,"Diplomamunka","Geográfus MSc","Dr. Bajmócy Péter",null,null,61]
["M2012/033","Szebeni Zoltán","Orosháza városfejlestési lehetőségei, különös tekintettel Gyopárosfürdő idegenforgalmi szerepére a Dél-Alföldön",2012,"Diplomamunka","Geográfus MSc","Dr. Bajmócy Péter",null,null,62]
["M2012/034","Németh Árpád","Bács-Kiskun megye 10000 főnél népesebb kistérségi központjainak több szempontú, idősoros összehasonlító elemzése",2012,"Diplomamunka","Geográfus MSc","Dr. Mészáros Rezső",null,null,63]
["M2012/035","Kocsis Márta","A magyar borvidékek demográfiai folyamatainak változása 1990 és 2010 között",2012,"Diplomamunka","Geográfus MSc","Dr. Bajmócy Péter",null,null,64]
["M2012/036","Kabódi Viktor","Városfejlődés és városrehabilitációs folyamatok egyes országokban, Magyarországon és Hódmezővásárhelyen",2012,"Diplomamunka","Geográfus MSc","Dr. Bajmócy Péter",null,null,65]
["M2012/037","Szilágyi Renáta","A Tamási termálfürdő fejlesztésének hatásvizsgálata a látogatói elégedettség alapján",2012,"Diplomamunka","Geográfus MSc","Dr. Pál Viktor",null,null,66]
["M2013/001","Förgeteg Dávid Szilveszter","A Marostői kiskertek szociálgeográfiája",2013,"Diplomamunka","Geográfus MSc","Dr. Kovács Csaba",null,null,67]
["M2013/002","Gulyás Máté","Kalocsa térszerkezete",2013,"Diplomamunka","Geográfus MSc","Dr. Kovács Csaba",null,null,68]
["M2013/003","Kisdeák Tamás","Csongrád és Vas megye falusi turizmusának összehasonlítása a helyi lakosok és a falusi szállásadók véleménye alapján",2013,"Diplomamunka","Geográfus MSc","Dr. Csordás László",null,null,69]
["M2013/004","Jenei Réka","A szolnoki városmarketing megítélése az ott élők, dolgozók és tanulók véleménye alapján",2013,"Diplomamunka","Geográfus MSc","Dr. Boros Lajos",null,null,70]
["M2013/005","Mácsai Anetta","Az Érdi járás turisztikai fejlesztésének lehetőségei, különös tekintettel a kulturális turizmusban rejlő lehetőségekre",2013,"Diplomamunka","Geográfus MSc","Dr. Boros Lajos",null,null,71]
["M2013/006","Lőcsér Ágnes ","Fesztiválturizmus",2013,"Diplomamunka","Geográfus MSc","Dr. Mészáros Rezső",null,null,72]
["M2013/007","Gazsó Mihály","A nemzeti parkokhoz kapcsolódó minősített erdei iskolák turisztikai szerepe a Dél-Alföldi Régió zöldturizmusában",2013,"Diplomamunka","Geográfus MSc","Dr. Juray Tünde","Szélné Sándor Katalin","Gilly zsolt",73]
["M2013/008","Gedővári Bianka","Igal a városfejlődés útján, különös tekintettel az egészségturisztikai fejlesztések jelentőségére",2013,"Diplomamunka","Geográfus MSc","Dr. Juray Tünde",null,null,74]
["M2013/009","Gere Emese","Szerbia szőlészete és borászata a turizmus szolgálatában",2013,"Diplomamunka","Geográfus MSc","Dr. Kovács Csaba",null,null,75]
["M2013/010","Kéki Zsolt","Kecskemét és Tatabánya térszerkezeti változásainak összehasonlító elemzése",2013,"Diplomamunka","Geográfus MSc","Dr. Kovács Zoltán",null,null,76]
["M2013/011","Vasárus Gábor László","Győr belső és külső szuburbán övének társadalomföldrajzi vizsgálata Győrszentiván és Töltéstava példáján",2013,"Diplomamunka","Geográfus MSc","Dr. Bajmócy Péter",null,null,77]
["M2013/012","Vida György","Szeged a hazai nagyvárosok versenyében: a versenyképesség és a településfejlesztés összefüggései",2013,"Diplomamunka","Geográfus MSc","Dr. Pál Viktor",null,null,78]
["M2013/013","Wilhelm Edit","A fogyatékkal élők intézményi ellátottságának és térhasználatának néhány jellemzője",2013,"Diplomamunka","Geográfus MSc","Dr. Timár Judit",null,null,79]
["M2013/014","Pál János","Sikeresen megújuló kiskunsági tanyák a XXI. Században",2013,"Diplomamunka","Geográfus MSc","Dr. Csatári Bálint",null,null,80]
["M2013/015","Mazán Zsombor","Nagy sportesemények hatása a rendező országok, városok terület- és településfejlesztésére",2013,"Diplomamunka","Geográfus MSc","Dr. Nagy Gábor",null,null,81]
["M2013/016","Körmöczi Gábor","Rétság formálódó központi szerepköre a helyi társadalom nézőpontjából",2013,"Diplomamunka","Geográfus MSc","Dr. Pál Viktor",null,null,82]
["M2013/017","Kardos Anita","A szegedi közösségi közlekedés fejlődése a kezdetektől a 2-es villamosvonal létrehozásáig",2013,"Diplomamunka","Geográfus MSc","Dr. Bajmócy Péter",null,null,83]
["M2013/018","Fehér Hajnalka","Az Amerikai Egyesült államok katonai támaszpontjai, mint települések",2013,"Diplomamunka","Geográfus MSc","Dr. Boros Lajos",null,null,84]
["M2013/019","Provics istván Flórián","Egy homokhátsági falu lehetőségei, Szank község példáján",2013,"Diplomamunka","Geográfus MSc","Dr. Boros Lajos",null,null,85]
["M2013/020","Törőcsik Zsolt","Jászkisér város fejlesztési lehetőségei",2013,"Diplomamunka","Geográfus MSc","Dr. Boros Lajos",null,null,86]
["M2013/021","Tóth Norbert","Alföldi kis és közepes méretű mezővárosok sikeresége - múlt, jelen, jövő",2013,"Diplomamunka","Geográfus MSc","Dr. Csatári Bálint",null,null,87]
["M2013/022","Györe András","Az M7-es autópálya gazdasági hatásai Nagykanizsa és Zalaegerszeg példáján",2013,"Diplomamunka","Geográfus MSc","Dr. Kovács Zoltán",null,null,88]
["M2013/023","Adányi Dániel","A kibertér használatának földrajzi aspektusai",2013,"Diplomamunka","Geográfus MSc","Dr. Bajmócy Péter",null,null,89]
["M2013/024","Fekete Viktor","A nemzetközi migráció és annak hatásai Prágára a Bársonyos forradalomtól napjainkig",2013,"Diplomamunka","Geográfus MSc","Dr. Kovács Csaba",null,null,90]
["M2013/025","Györki Andrea","A szeegdi lakótelepek bűnözésföldrajzi vizsgálata",2013,"Diplomamunka","Geográfus MSc","Dr. Bajmócy Péter",null,null,91]
["M2013/026","Hepp Levente","A LEADER program megvalósulása Felső-Bácskában",2013,"Diplomamunka","Geográfus MSc","Dr. Kovács Csaba",null,null,92]
["M2014/001","Suba Brigitta","Az első budapesti közösségi terek összehasonlító vizsgálata",2013,"Diplomamunka","Geográfus MSc","Dr. Kovács Zoltán",null,null,93]
["M2014/002","Lázár Mária","Hódmezővásárhelyi szegregátum-vizsgálat",2013,"Diplomamunka","Geográfus MSc","Dr. Kovács Csaba",null,null,94]
["M2014/003","Kocsmár Bálint","A regionális operatív programok forrásainak területi felhasználása",2013,"Diplomamunka","Geográfus MSc","Dr. Kovács Zoltán",null,null,95]
["M2014/004","Bakai Attila","Csongrád vonzáskörzetének vizsgálata empirikus úton és a gravitációs modell alkalmazásával",2014,"Diplomamunka","Geográfus MSc","Dr. Bajmócy Péter",null,null,96]
["M2014/005","Balogh Árpád","Hódmezővásárhely város sikerességének vizsgálata",2014,"Diplomamunka","Geográfus MSc","Dr. Hegedűs Gábor",null,null,97]
["M2014/006","Csaplár Levente","A fenntartható fejlődés sajátos földrajzi tényezői Komárom-Esztergom megyében",2014,"Diplomamunka","Geográfus MSc","Dr. Csatári Bálint",null,null,98]
["M2014/007","Hajdu Zita","Békéscsabai fejlesztések és hatásuk a fiatal korosztályra",2014,"Diplomamunka","Geográfus MSc","Dr. Nagy Gábor",null,null,99]
["M2014/008","Hochman Dávid","Falu-város dichotómia a felnőtt lakosság térpályáiban - Bordány és Szeged példáján",2014,"Diplomamunka","Geográfus MSc","Dr. Kovács Zoltán",null,null,100]
["M2014/009","Mészáros Dániel","Komárom-Esztergom megye térszerkezete, vonzáskörzetének vizsgálata a gravitációs modell segítségével",2014,"Diplomamunka","Geográfus MSc","Dr. Bajmócy Péter",null,null,101]
["M2014/010","Koloh Beáta","Gyomaendrőd terület- és településfejlesztési aspektusú turizmusföldrajzi vizsgálata",2014,"Diplomamunka","Geográfus MSc","Dr. Juray Tünde",null,null,102]
["M2014/011","Jámbor Viktor Ernő","A kelet-közép-európai történelmi belvárosok rehabilitációja és a gazdasági szerkezetváltás folyamata - Gyula és Selmecbánya példáján",2014,"Diplomamunka","Geográfus MSc","Dr. Nagy Erika",null,null,103]
["M2014/012","Muzamel Gitta","A görögországi \"magyar\" falu (Sarti és az idegenforgalom)",2014,"Diplomamunka","Geográfus MSc","Dr. Csordás László",null,null,104]
["M2014/013","Szentes Anna","Karancs - vidék szociálgeográfiai vizsgálata",2014,"Diplomamunka","Geográfus MSc","Dr. Bajmócy Péter",null,null,105]
["M2014/014","Szeip Viktória","A gazdasági válság hatásai és az érintett szereplők reakciói a Tolna-megye néhány vidékies településén",2014,"Diplomamunka","Geográfus MSc","Dr. Pál Viktor",null,null,106]
["M2014/015","Pásztor Andrea","Kecel szociálgeográfiája",2014,"Diplomamunka","Geográfus MSc","Dr. Bajmócy Péter",null,null,107]
["M2014/016","Rusz József","Mezőkövesdi járás Egri Bükkaljai kis- és aprófalvas településeinek szociálgeográfiája",2014,"Diplomamunka","Geográfus MSc","Dr. Bajmócy Péter",null,null,108]
["M2014/017","Tanács Lejla","A magyar tanya társadalma és szociális problémái a  zákányszéki tanyavilág példáján",2014,"Diplomamunka","Geográfus MSc","Dr. Kovács Zoltán",null,null,109]
["M2014/018","Faragó Noémi","A zarándokturizmus jelenlegi helyzete és megjelenése az ifjúsági körében",2014,"Diplomamunka","Geográfus MSc","Martyin Zita",null,null,110]
["M2014/019","Bertus Zoltán","Politikai törésvonalak a Dél-Dunántúlon az országgyűlési választások tükrében",2014,"Diplomamunka","Geográfus MSc","Dr. Kovács Zoltán",null,null,111]
["M2014/020","Rádai Tibor","Gyálarét, mint Szeged szuburbán városrésze",2014,"Diplomamunka","Geográfus MSc","Dr. Kovács Csaba",null,null,112]
["M2014/021","Zakari Dániel","Versengés és kooperációs lehetőségek Békéscsaba és Gyula viszonyendszerében az ezredfordulón",2014,"Diplomamunka","Geográfus MSc","Dr. Kovács Csaba",null,null,113]
["M2014/022","Berdó Csilla Ágnes","A megújuló energia erőforrások szerepe Magyarországon a településfejlesztésben",2014,"Diplomamunka","Geográfus MSc","Nagy Gyula",null,null,114]
["M2014/023","Boda Gábor","Kerékpáros úthálózat és a kialakult konfliktushelyzetek térbelisége Szegeden",2014,"Diplomamunka","Geográfus MSc","Nagy Gyula",null,null,115]
["M2014/024","Kávai Viktória  Anikó","A szegedi lakosok üdülési és utazási szokásainak vizsgálata (2007-2014)",2014,"Diplomamunka","Geográfus MSc","Dr. Csordás László",null,null,116]
["M2014/025","Nagy Gergely","A SPES mint vidékfejlesztési és turisztikai projekt (Schlierbach - Ausztria)",2014,"Diplomamunka","Geográfus MSc","Dr. Kovács Csaba",null,null,117]
["M2014/026","Pajer Dániel","Szeged turisztikai imázsa a \"Szeged Tourinform\" Facebook oldal követőinek véleménye alapján",2014,"Diplomamunka","Geográfus MSc","Dr. Pál Viktor",null,null,118]
["M2015/001","Ardai Tamás","Kiskunhalas komplex vonzáskörzetének vizsgálata",2015,"Diplomamunka","Geográfus MSc","Dr. Bajmócy Péter"]
["M2015/002","Bende Csaba","Közösségi kertek helyi társadalomra gyakorolt hatásai a szegedi közösségi kert példáján",2015,"Diplomamunka","Geográfus MSc","Nagy Gyula"]
["M2015/003","Branyiczky Nikolett","Szeged-Baktói kiskertek szociágeográfiája",2015,"Diplomamunka","Geográfus MSc","Dr. Bajmócy Péter"]
["M2015/004","Fodor Zsolt","Domaszék szociálgeográfiája",2015,"Diplomamunka","Geográfus MSc","Dr. Bajmócy Péter"]
["M2015/005","Hegedüs Tamás","A városszétfolyás és szuburbanizáció vizsgálata Zalaegerszeg közigazgatási határain belül",2015,"Diplomamunka","Geográfus MSc","Nagy Gyula"]
["M2015/006","Herczeg Dóra Imola","A kalocsai cigányság egészségügyi helyzete",2015,"Diplomamunka","Geográfus MSc","Dr. Boros Lajos"]
["M2015/007","Hoffner Zsóka Angéla","A tudásgazdaság jelentősége Szegeden és jövőbeli lehetőségei az Agóra program példáján",2015,"Diplomamunka","Geográfus MSc","Dr. Pál Viktor"]
["M2015/008","Ilcsik Arnold","A vajdasági magyarok nemzeti identitása a tömbben és a szórványban",2015,"Diplomamunka","Geográfus MSc","Dr. Bajmócy Péter"]
["M2015/009","Kismók Róbert","A Dél-Alföld választásföldrajzi jellemzői a 2006-2014 közötti országgyűlési választások tükrében",2015,"Diplomamunka","Geográfus MSc","Dr. Kovács Zoltán"]
["M2015/010","Kiss Alexandra Éva","A cafetéria juttatások és a turisztikai kedvezménykártyák szerepe a belföldi turizmusban",2015,"Diplomamunka","Geográfus MSc","Dr. Csordás László"]
["M2015/011","Ladóczki Andor","A Szabadka- Horgosi borvidék helyzete és borturizmusa ",2015,"Diplomamunka","Geográfus MSc","Dr. Kovács Csaba"]
["M2015/012","Láng Zoltán","Kilímatudatos megoldások Szeged városában Európai Uniós elméleti és gyakorlati példákon keresztül",2015,"Diplomamunka","Geográfus MSc","Dr. Pál Viktor"]
["M2015/013","Makra Zsófia","A kihalás szélére sodródott aprófalvak megmaradásának alternatívái a kelet-Mecsek és a Völgység példáján",2015,"Diplomamunka","Geográfus MSc","Dr. Bajmócy Péter"]
["M2015/014","Német Beatrix","Az ökoturizmus helyzete és fejlesztési lehetőségei a Nagykátai kistérségben",2015,"Diplomamunka","Geográfus MSc","Martyin Zita"]
["M2015/015","Osztényi Rita","A turizmus mint kitörési lehetőség a periférián - Gyula egészségturizmusa",2015,"Diplomamunka","Geográfus MSc","Dr. Nagy Erika"]
["M2015/016","Radics Vivien","Magyar vándorok - a képzett munkaerő migrációs terveinek és döntéseinek vizsgálata",2015,"Diplomamunka","Geográfus MSc","Dr. Kovács Csaba"]
["M2015/017","Ribárszki Ádám András","Orosháza kiemelt turisztikai vonzereje: Gyopárosfürdő",2015,"Diplomamunka","Geográfus MSc","Dr. Csordás László"]
["M2015/018","Sebestyén Márton","A lakóparkok társadalomföldrajzi vizsgálata Budapest VIII. kerületében",2015,"Diplomamunka","Geográfus MSc","Dr. Hegedűs Gábor"]
["M2015/019","Silló Norbert","Orosháza gazdasági sikerességének vizsgálata",2015,"Diplomamunka","Geográfus MSc","Dr. Hegedűs Gábor"]
["M2016/015","Hegedűs László Dávid","A világgazdaság hatása a Formula-1-es világbajonkság térszerkezetére",2016,"Diplomamunka","Geográfus MSc","Dr.Nagy Gábor"]
["M2016/016","Holmi Melinda","Kerékpáros tanösvény - mint turisztikai termékfejlesztési lehetőség a Szelidi - tó körül",2016,"Diplomamunka","Geográfus MSc","Dr. Pál Viktor"]
["M2016/017","Dráviczki Sándor","Középiskolások földrajzi ismeretei a turizmusról",2016,"Diplomamunka","Geográfus MSc","Dr. Pál Viktor"]
["M2016/018","Eke Dalma Dóra","A fürdőfejlesztés jelenlegi helyzete és lehetőségei Kiskunhalason",2016,"Diplomamunka","Geográfus MSc","Dr. Pál Viktor"]
["M2016/019","Tujder Tamara","Városimázs vizsgálat Veszprém megyei települések példáján",2016,"Diplomamunka","Geográfus MSc","Dr. Boros Lajos"]
["M2016/020","Kendrella Bettina","A peremvárosok kialakulása, jellemzői és a magyarországi megjelenési formái",2016,"Diplomamunka","Geográfus MSc","Nagy Gyula"]
["M2016/021","Kincses Boglárka","Szeged- Belváros árvízvédelmi fejlesztés nyilvánosságszempontú vizsgálata",2016,"Diplomamunka","Geográfus MSc","Nagy Gyula"]
["M2016/022","Nagy Ilona","A közoktatás intézményi átszervezésének migrációs hatásai",2016,"Diplomamunka","Geográfus MSc","Dr. Pál Viktor"]
["M2016/023","Nagy Imre","Vésztő településfejlesztési lehetőségeinak vizsgálata",2016,"Diplomamunka","Geográfus MSc","Dr. Hegedűs Gábor"]
["M2016/024","Papp Sándor","Alternatívák a kedvezményezett települések életminőség szerinti lehatárolására",2016,"Diplomamunka","Geográfus MSc","Nagy Gyula"]
["M2016/025","Tóth Balázs Károly","A békéscsabai főtérrehabilitáció értékelése társadalomtudományi módszerekkel",2016,"Diplomamunka","Geográfus MSc","Nagy Gyula"]
["M2016/026","Tóth-Czeper Gabriella","Békés megye társadalmi- gazdasági helyzete, és népességszámának csökkéne Tótkomlós és Szabadkígyós",2016,"Diplomamunka","Geográfus MSc","Dr. Bajmócy Péter"]
["M2016/027","Schmidt Csongor","A magyarság asszimilációjának és szórványosodásának a vizsgálata Nyugat-Bácskában és a Szerémségben",2016,"Diplomamunka","Geográfus MSc","Dr. Prof. Kovács Zoltán"]
["M2016/028","Szabó Tamás","A tápéi identitás és Tápé kapcsolata Szegeddel a 21. században",2016,"Diplomamunka","Geográfus MSc","Dr. Bajmócy Péter"]
["M2016/029","Szabó Réka","A szegedi nagyvárosi településegyüttes kapcsolat vizsgálat gráf-elemzés segítségével",2016,"Diplomamunka","Geográfus MSc","Dr. Prof. Kovács Zoltán"]
["M2017/001","Abt Imre Péter","A szegedi Nyugati Iparváros fejlődése és átalakulása az 1980-as évektől napjainkig",2017,"Diplomamunka","Geográfus MSc","Kovács Zoltán"]
["M2017/002","Csuka Norbert","Az autóipar és a településfejlesztés kapcsolata Kecskemét példáján",2017,"Diplomamunka","Geográfus MSc","Lados Gábor"]
["M2017/003","Kovács István","A közfoglalkoztatás társadalmi hatásai Dél Békésben",2017,"Diplomamunka","Geográfus MSc","Bajmócy Péter"]
["M2017/004","Kovalcsik Tamás","A magyar választási rendszer 2011. évi átalakításának földrajzi hatásai",2017,"Diplomamunka","Geográfus MSc","Kovács Zoltán"]
["M2017/005","Kriska Olivér","Határsáv - Az államhatárok értelmezése, funkciói és társadalmi attitűdök a szerb-magyar határtérségben",2017,"Diplomamunka","Geográfus MSc","Nagy Gyula"]
["M2017/006","Péter Diána","Európai Integráció a magyar agrárszektor szemszögéből - globális kihívások és lokális válaszok",2017,"Diplomamunka","Geográfus MSc","Fabula Szabolcs"]
["M2017/007","Révész Judit","Bekés város fejlesztési tevékenységének és lehetőségeinek megítélése a helyi érdekcsoportok szempontjából",2017,"Diplomamunka","Geográfus MSc","Hegedűs Gábor"]
["M2017/008","Sövényházi Bettina","A településfejlesztési projektek társadalmi megítélése Röszke példáján",2017,"Diplomamunka","Geográfus MSc","Pál Viktor"]
["M2017/009","Szabad Richárd","A múzeumok, kiállítóhelyek szerepe a kulturális turizmusban Csongrád megyei példákon keresztül",2017,"Diplomamunka","Geográfus MSc","Martyin-Csamangó Zita"]
["M2017/010","Tóth Bettina","A helyi értékek és hungarikumok jelentőségeinek vizsgálata a lokális és globális piacokon alföldi példákon keresztül",2017,"Diplomamunka","Geográfus MSc","Nagy Gyula"]
["M2017/011","Török Bence","Székkutas településföldrajzának bemutatása, különös tekintettel annak tanyavilágára",2017,"Diplomamunka","Geográfus MSc","Nagy Gábor"]
["M2017/012","Vidéki Renáta","Klaszterek, mint a gazdasági fejlődés kulcsszereplői Szegeden, a biotechnológia példáján",2017,"Diplomamunka","Geográfus MSc","Bajmócy Péter"]
["M2017/013","Szalók Máté","A kreativitás és a kreatív ipar magyarországi jellemzőinek vizsgálata, különös tekintettel a Közép-dunántúli Régióra",2017,"Diplomamunka","Geográfus MSc","Nagy Gyula"]
["M2017/014","Tóth Beáta","Az USA idegenfotgalmának jellemzői a Camp Leaders által kiutaztatott magyar egyetemisták szemszögéből",2017,"Diplomamunka","Geográfus MSc","Bajmócy Péter"]
["M2018/001","Alföldi Kristóf","A vidéki nagyvárosi régiók átalakulása és belső differenciálódása a lakáspiaci folyamatok tükrében",2018,"Diplomamunka","Geográfus MSc","Kovács Zoltán"]
["M2018/002","Bartalos Balázs István","A szuburbanizáció hatása a funkcionális térre - Szociálgeográfiai vizsgálat Újszentivánon",2018,"Diplomamunka","Geográfus MSc","Bajmócy Péter"]
["M2018/003","Biró Viktória","A turizmus hatása az urban sprawlra a horvátországi Zadar és Dubrovnik település példája alapján",2018,"Diplomamunka","Geográfus MSc","Nagy Gyula"]
["M2018/004","Dán Viktória Judit","A filmek szerepe egyes forgatási helyszínek turisztikai kínálatában és az utazási döntés befolyásolásában",2018,"Diplomamunka","Geográfus MSc","Martyin-Csamangó Zita"]
["M2018/005","Fidler Georgina","Duna menti waterfront fejlesztések és lehetőségek Budapest példáján",2018,"Diplomamunka","Geográfus MSc","Nagy Gábor"]
["M2018/006","Horváth András","A szerb nemzetiség etnikai földrajza Csongrád megyében",2018,"Diplomamunka","Geográfus MSc","Bajmócy Péter"]
["M2018/007","Kalmár Réka","Szerbai ingatlanpiaci folyamatok vizsgálati lehetőségei kisebb földrajzi léptékben, Ada példáján",2018,"Diplomamunka","Geográfus MSc","Pál Viktor"]
["M2018/008","Kispál Judit","A települési közbiztonsággal kapcsolatos konfliktusok és megoldási kísérleteik - A bűnözés térbeli megjelenésének és a biztonság szubjektív értelmezésének vizsgálata Szegeden",2018,"Diplomamunka","Geográfus MSc","Nagy Gyula"]
["M2018/009","Linc Annamária","Kárpátalja turisztikai termékfejlesztésének lehetőségei a helyi adottságok és a helyben tevékenykedők szempontjából",2018,"Diplomamunka","Geográfus MSc","Vida György"]
["M2018/010","Miklós Bence","Belvizes területeken élők információ-hozzáférésének és életminőségének vizsgálata a környezeti igazságtalanság elméletén keresztül",2018,"Diplomamunka","Geográfus MSc","Nagy Gyula"]
["M2018/011","Modok Marianna","Szegedi gazdag-szegregátumok lehatárolási kísérlete",2018,"Diplomamunka","Geográfus MSc","Boros Lajos"]
["M2018/012","Német Helga","Felsőoktatásban tanuló vajdasági magyar fiatalok identitástudata és migrációs szándéka",2018,"Diplomamunka","Geográfus MSc","Pál Viktor"]
["M2018/013","Paku Antónia","Szamoskrassó szociálgeográfiai elemzése",2018,"Diplomamunka","Geográfus MSc","Bajmócy Péter"]
["M2018/014","Rácz Dóra Orsolya","A városi szétterülés földrajzi hatásai Szeged és Kecskemét példáján",2018,"Diplomamunka","Geográfus MSc","Kovács Zoltán"]
["M2018/015","Süli Dorottya","A könnyűzenei fesztiválok településre gyakorolt turisztikai hatásai",2018,"Diplomamunka","Geográfus MSc","Martyin-Csamangó Zita"]
["M2018/016","Szalai Ádám ","Közterek vizsgálati lehetőségei szegedi példákon keresztül",2018,"Diplomamunka","Geográfus MSc","Nagy Gyula"]
["M2018/017","Szarvas Brigitta","Különböző Európai Uniós programozási ciklusokban készült pályázati projektek összehasonlító elemzése egy szegedi vállalat példáján",2018,"Diplomamunka","Geográfus MSc","Bajmócy Péter"]
["M2018/018","Treml Júlia","Határ, ami összeköt - Sopron és Burgenland kapcsolatának társadalomföldrajzi elemzése",2018,"Diplomamunka","Geográfus MSc","Boros Lajos"]
["M2018/019","Gedó Nikoletta Bianka","Békéscsabai fiatalok migrációs hajlandósága közoktatási intézményekben végzett felmérés alapján",2018,"Diplomamunka","Geográfus MSc","Nagy Gábor"]
["M2019/01",{"$f":"[1]ListaOrigi!B33","v":"Enyedi Fruzsina"},{"$f":"[1]ListaOrigi!C33","v":"A városi zaj által okozott és közvetített társadalmi konfliktusok településfejlesztési vonatkozásai"},2019,"Diplomamunka","Geográfus MSc","Pál Viktor"]
["M2019/02",{"$f":"[1]ListaOrigi!B23","v":"Füzi Imre"},{"$f":"[1]ListaOrigi!C23","v":"Kerékpárosbarát közlekedési infrastruktúra kialakításának lehetőségei Szegeden"},2019,"Diplomamunka","Geográfus MSc","Bajmócy Péter"]
["M2019/03",{"$f":"[1]ListaOrigi!B34","v":"Gracsek Alexandra"},{"$f":"[1]ListaOrigi!C34","v":"A közterületen szórakozó középiskolások deviáns viselkedésformáinak térbelisége Szegeden"},2019,"Diplomamunka","Geográfus MSc","Bajmócy Péter"]
["M2019/04",{"$f":"[1]ListaOrigi!B24","v":"Madarász Emese"},{"$f":"[1]ListaOrigi!C24","v":"Településwebmarketing - a magyarországi települések digitális lábnyomának vizsgálata"},2019,"Diplomamunka","Geográfus MSc",{"$f":"[1]ListaOrigi!E24","v":"Pál Viktor"}]
["M2019/05",{"$f":"[1]ListaOrigi!B25","v":"Mesterházy Melinda"},{"$f":"[1]ListaOrigi!C25","v":"Az egyéni közlekedés térbeli mintázatának elemzése Szegeden - helyzetelemzés és városfejlesztési lehetőségek"},2019,"Diplomamunka","Geográfus MSc",{"$f":"[1]ListaOrigi!E25","v":"Nagy Gyula"}]
["M2019/06",{"$f":"[1]ListaOrigi!B26","v":"Mészáros Noémi"},{"$f":"[1]ListaOrigi!C26","v":"A fenntartható turizmus kialakításának lehetősége Szegeden"},2019,"Diplomamunka","Geográfus MSc",{"$f":"[1]ListaOrigi!E26","v":"Nagy Gyula"}]
["M2019/07",{"$f":"[1]ListaOrigi!B27","v":"Mészáros Nóra"},{"$f":"[1]ListaOrigi!C27","v":"A szegedi kulturális turizmus imázs formáló hatásának vizsgálata"},2019,"Diplomamunka","Geográfus MSc",{"$f":"[1]ListaOrigi!E27","v":"Boros Lajos"}]
["M2019/08",{"$f":"[1]ListaOrigi!B28","v":"Pintér János"},{"$f":"[1]ListaOrigi!C28","v":"Ballószög község külterületének társadalomföldrajzi vizsgálata"},2019,"Diplomamunka","Geográfus MSc",{"$f":"[1]ListaOrigi!E28","v":"Hegedűs Gábor"}]
["M2019/09",{"$f":"[1]ListaOrigi!B29","v":"Váczi Sándor"},{"$f":"[1]ListaOrigi!C29","v":"A kreatív ágazatok szerepe magyarországi egyetemi városok gazdaságában"},2019,"Diplomamunka","Geográfus MSc",{"$f":"[1]ListaOrigi!E29","v":"Fabula Szabolcs"}]
["M2019/10",{"$f":"[1]ListaOrigi!B30","v":"Vízhányó Attila"},{"$f":"[1]ListaOrigi!C30","v":"A helyi fejlesztések életminőségre gyakorolt hatásai a hódmezővásárhelyi hódtói lakótelepen"},2019,"Diplomamunka","Geográfus MSc",{"$f":"[1]ListaOrigi!E30","v":"Fabula Szabolcs"}]
["M2019/12","Balázs Ivett","A gazdaságfejlesztés szerepe a terület- és településfejlesztésben, különös tekintettel Mezőtúr gazdaságfejlesztési lehetőségeire versenyképességére",2019,"Diplomamunka","Geográfus MSc","Pál Viktor"]
["M2019/13","Gulyás Richárd Lajos","A békéscsabai József Attila lakótelep (Lencsési lakótelep) városfejlesztési adotságainak és lehetőségeinek vizsgálata",2019,"Diplomamunka","Geográfus MSc","Hegedűs Gábor"]
["M2019/14","Huszta László Álmos","A Forma-1-es Magyar Nagydíj a látogatók szemszögéből",2019,"Diplomamunka","Geográfus MSc","Boros Lajos"]
["M2019/15","Szabó Tamás","Nyugat-keleti irányú autópályák (M4, M8, M9) lehetséges hatásai Szeged térkapcsolataira",2019,"Diplomamunka","Geográfus MSc","Bajmócy Péter"]
["M2020/01","Horváth Gergő ","A városzsugorodás jelenségének vizsgálata és megoldási lehetőségei egy magyar középváros, Kaposvár példáján",2020,"Diplomamunka","Geográfus MSc"]
["M2020/02","Horváth Nikoletta Dóra","A smart turizmusfejlesztés lehetőségei szentiment analízis segítségével - a szegedi felsőkategóriás szálláshelyek véleményelemzése",2020,"Diplomamunka","Geográfus MSc","Nagy Gyula"]
["M2020/03","Karl Máté János","A körkörös gazdaság perspektívái Szegeden ",2020,"Diplomamunka","Geográfus MSc","Vida György"]
["M2020/04","Szögi Nikolett","A kompakt város koncepció, mint a fenntartható városfejlesztés eszköze – Szeged kompakt városi jellegének vizsgálata",2020,"Diplomamunka","Geográfus MSc","Nagy Gyula"]
["M2020/05","Szűcs Roland Zsolt","A szegedi Erzsébet Liget megújulásának városfejlesztési szempontú vizsgálata",2020,"Diplomamunka","Geográfus MSc","Nagy Gyula"]
["M2020/06","Aigerim Assylkhanova","Phenomena of personalisation and FOMO in tourism",2020,"Diplomamunka","Geography MSc","Kovács Zoltán"]
["M2020/07","Zhanassyl Teleubay","Comparative analysis of urban tourism flows by CDR data: the case of Szeged, Debrecen and Pécs",2020,"Diplomamunka","Geography MSc","Kovács Zoltán"]